Cogmind - Beta 12 @@@ ROGUE MODE // 2023.07.12 @ 23:55:26 Player: hanzu Result: Destroyed by Y-45 Defender with Beam Rifle Performance ------------- Evolutions (2) 1000 Regions Visited (9) 1800 Robots Destroyed (153) 765 Value Destroyed (4694) 4694 Prototype IDs (47) 940 Alien Tech Used (0) 0 Bonus (1126) 1126 TOTAL SCORE: 10325 Bonus ------- High Alert Combat Kills 450 Follower Combat Kills 276 Entered Garrisons 200 Aligned with FarCom 300 Friendly Fire -100 Cogmind --------- Core Integrity 0/550 Matter 50/300 Energy 45/125 System Corruption 0% Temperature Cool (9) Movement Hovering (112) Ox1 Location -8/Garrison Parts ------- > --- POWER (1) -------- Light Ion Engine > --- PROPULSION (3) --- Improved Hover Unit Improved Hover Unit Gravmag System > --- UTILITY (4) ------ Improved Heat Sink Large Storage Unit Hacking Suite Hacking Suite > --- WEAPON (3) ------- Pulse Rifle Pulse Rifle Heavy Plasma Cannon > --- INVENTORY (15) --- Light Ion Engine Improved Heat Sink High-capacity Matter Pod (200) Machine Analyzer System Shield PSU Rigger Pulse Rifle Heavy Plasma Cannon Remote Datajack Peak State ------------ > --- POWER ------------ Light Deuterium Engine > --- PROPULSION ------- Aerolev Unit Aerolev Unit Aerolev Unit > --- UTILITY ---------- Improved Heat Sink Large Storage Unit Hardened Medium Armor Plating Hacking Suite > --- WEAPON ----------- Heavy Particle Gun Precision Beam Rifle Enhanced Autogun > --- INVENTORY -------- Light Nuclear Core Gravmag System Gravmag System Gravmag System Gravmag System High-capacity Matter Pod Hacking Suite PSU Rigger Minigun Minigun Advanced Assault Cannon Advanced Assault Cannon Advanced Assault Cannon Improved Grenade Launcher Datajack [Rating: 42] Favorites ----------- Power Light Deuterium Engine Engine Light Deuterium Engine Power Core Light Nuclear Core Propulsion Improved Hover Unit Leg Aluminum Leg Hover Unit Improved Hover Unit Utility Hacking Suite Device Improved Heat Sink Storage Large Storage Unit Processor Targeting Computer Hackware Hacking Suite Protection Hardened Medium Armor Plating Weapon Minigun Energy Gun Beam Rifle Energy Cannon Heavy Particle Cannon Ballistic Gun Minigun Ballistic Cannon Advanced Assault Cannon Launcher Improved Grenade Launcher Special Melee Weapon Datajack Build | -11 -10 -10 -9 -9 -9 -8 -8 -8 -8 ------- Run | Jun Mat Min Mat Min Exi Min Mat Sto Gar Slots Evolved 4 | . . . 2 . . . 2 . . Power . | . . . . . . . . . . Propulsion 1 | . . . 1 . . . . . . Utility 2 | . . . 1 . . . 1 . . Weapon 1 | . . . . . . . 1 . . Parts Attached 129 | 8 9 4 38 5 3 2 47 1 12 Power 13 | 2 2 . 4 . . 1 2 . 2 Engine 11 | 2 1 . 4 . . 1 2 . 1 Core 2 | . 1 . . . . . . . 1 Reactor . | . . . . . . . . . . Propulsion 41 | 2 4 1 18 . . 1 11 . 4 Treads . | . . . . . . . . . . Leg 2 | 2 . . . . . . . . . Wheel . | . . . . . . . . . . Hover 39 | . 4 1 18 . . 1 11 . 4 Flight . | . . . . . . . . . . Utility 24 | 2 1 2 5 2 1 . 10 1 . Device 13 | 1 . 1 3 2 . . 6 . . Storage 5 | 1 1 . 1 . 1 . 1 . . Processor 2 | . . 1 . . . . 1 . . Hackware 2 | . . . 1 . . . . 1 . Protection 2 | . . . . . . . 2 . . Artifact . | . . . . . . . . . . Weapon 51 | 2 2 1 11 3 2 . 24 . 6 Energy Gun 19 | 2 1 . 9 1 . . 4 . 2 Energy Cannon 4 | . . . . . . . 2 . 2 Ballistic Gun 14 | . 1 . 1 2 1 . 9 . . Ballistic Cannon 5 | . . 1 1 . . . 3 . . Launcher 8 | . . . . . . . 6 . 2 Special Weapon . | . . . . . . . . . . Impact Weapon . | . . . . . . . . . . Slashing Weapon . | . . . . . . . . . . Piercing Weapon . | . . . . . . . . . . Special Melee Weapon 1 | . . . . . 1 . . . . Unidentified Prototypes 8 | . . . 2 1 . . 5 . . Parts Lost 44 | . 1 2 16 1 . 2 14 . 8 Power 6 | . . . 1 . . 1 2 . 2 Propulsion 20 | . 1 1 8 . . 1 5 . 4 Utility 6 | . . 1 2 . . . 3 . . Weapon 12 | . . . 5 1 . . 4 . 2 Highest Loss Streak 7 | . 1 1 3 1 . 2 7 . 4 To Critical Strikes . | . . . . . . . . . . Average Slot Usage (%) 97 | . 99 99 96 100 100 94 97 98 97 Engine 7 | . 5 . 10 11 11 8 8 9 5 Core 2 | . 8 14 . . . . . . 2 Hover 28 | . 27 27 30 33 33 30 26 27 26 Device 10 | . 14 6 10 11 11 11 11 9 9 Storage 10 | . 14 14 11 11 11 11 9 9 9 Hackware 8 | . . . 10 11 11 11 9 16 18 Protection 1 | . . . . . . . 5 . . Energy Gun 10 | . 16 14 19 5 . . 3 . 11 Energy Cannon 1 | . . . . . . . 2 9 . Ballistic Gun 7 | . 11 1 . 16 13 22 12 . . Ballistic Cannon 5 | . . 12 2 . . . 7 18 6 Naked Turns . | . . . . . . . . . . Heaviest Build 49 | 14 21 22 36 32 32 32 49 48 48 Greatest Support 26 | 20 20 14 23 19 19 20 26 26 26 Greatest Overweight (x) 4 | 4 2 3 4 1 1 2 4 1 4 Average Overweight (x) 1 | . . 1 1 1 1 1 1 1 1 Largest Inventory Capacity 15 | 8 10 10 15 15 15 15 15 15 15 Average Capacity 13 | 7 9 10 14 15 15 15 15 15 15 Most Carried 15 | 5 10 10 15 15 15 14 15 15 15 Average Carried 11 | 2 8 9 10 13 13 13 13 14 11 Final Capacity 15 | 8 10 10 15 15 15 15 15 15 15 Final Carried 15 | 2 10 10 15 13 14 12 15 15 9 Class Distribution -------------------- 41% | Mutant 30% | Skirmisher 22% | Scavenger-Mutant Dominant Class ---------------- Mutant | -10/Materials Mutant | -10/Mines Mutant | -9/Materials Scavenger-Mutant | -9/Mines Scavenger-Mutant | -9/Exiles Scavenger-Mutant | -8/Mines Skirmisher | -8/Materials Commander-Skirmisher | -8/Storage Scavenger-Mutant | -8/Garrison Resources | -11 -10 -10 -9 -9 -9 -8 -8 -8 -8 ----------- Run | Jun Mat Min Mat Min Exi Min Mat Sto Gar Matter Collected 3483 | 270 222 199 612 66 . 80 1679 141 214 Remotely . | . . . . . . . . . . Salvage Created 5355 | 125 308 250 1495 261 . 60 2458 86 312 Parts 297 | 10 27 20 89 10 . 1 119 4 17 Haulers Intercepted 8 | . . . 4 . . . 3 1 . Recyclers Shooed 1 | . . . . . . . 1 . . Parts Field Recycled . | . . . . . . . . . . Retrieved Matter . | . . . . . . . . . . Parts Self-Destructed . | . . . . . . . . . . Prevented . | . . . . . . . . . . Kills | -11 -10 -10 -9 -9 -9 -8 -8 -8 -8 ------- Run | Jun Mat Min Mat Min Exi Min Mat Sto Gar Combat Hostiles Destroyed 120 | . 7 8 34 3 . 1 48 2 17 Guns 70 | . 7 3 26 3 . 1 28 . 2 Cannons 31 | . . 5 5 . . . 15 2 4 AOE 16 | . . . 1 . . . 4 . 11 Classes Destroyed 17 | 2 5 1 3 . . 1 4 . 1 Worker 6 | . . . . . . . 6 . . Builder 2 | . 1 . . . . . 1 . . Tunneler 5 | 2 . 1 . 2 . . . . . Hauler 8 | . . . 4 . . . 3 1 . Recycler 2 | 1 . . . 1 . . . . . Mechanic 1 | . . . . . . . 1 . . Operator 5 | . 2 . 1 . . . 2 . . Watcher 12 | . 2 . 5 . . . 5 . . Swarmer 24 | . 3 . 7 . . . 7 . 7 Grunt 68 | . 4 6 19 2 . . 28 2 7 Brawler 2 | . . . 1 1 . . . . . Duelist 1 | . . . . . . . 1 . . Sentry 16 | . . . 7 . . . 9 . . Specialist 2 | . . . . . . . 2 . . Hunter 2 | . . . . . . 1 1 . . Programmer 3 | . . . . . . . . . 3 Assembled 2 | . . 2 . . . . . . . Thug 1 | . . . . . . . . . 1 Best Kill Streak 8 | 3 3 2 5 3 . 1 8 2 7 Combat Bots Only 7 | . 3 2 5 3 . 1 7 2 7 Max Kills in Single Turn 6 | 1 2 1 2 2 . 1 5 1 6 Gunslinging 1 | . . . 1 . . . 1 . . Exploded 6 | . . . 1 . . . 4 . 6 Melee . | . . . . . . . . . . Uniques/NPCs Destroyed . | . . . . . . . . . . Combat | -11 -10 -10 -9 -9 -9 -8 -8 -8 -8 -------- Run | Jun Mat Min Mat Min Exi Min Mat Sto Gar Damage Taken 5246 | . 261 95 1262 107 . 150 2476 93 802 Core 903 | . 63 38 193 22 . 36 357 33 161 Absorbed by Shields . | . . . . . . . . . . Regen/Repaired (Parts) 181 | . . . 94 . . . 87 . . Core Remaining (%) 65 | 100 . 59 . . . 37 . . . Volleys Fired 359 | 5 29 20 111 12 . 8 140 7 27 Largest 3 | 2 2 2 2 2 . 2 3 3 3 Hottest 216 | 80 80 80 112 112 . 50 171 171 216 Shots Fired 791 | 10 55 37 207 22 . 16 377 21 46 Gun 580 | 10 55 17 163 22 . 16 289 . 8 Cannon 182 | . . 20 44 . . . 74 21 23 Launcher 29 | . . . . . . . 14 . 15 Special . | . . . . . . . . . . Kinetic 438 | . 24 20 55 4 . 16 283 14 22 Thermal 227 | 5 5 . 103 18 . . 80 7 9 Explosive 29 | . . . . . . . 14 . 15 Electromagnetic 97 | 5 26 17 49 . . . . . . Robot Hit Streak 15 | 4 10 7 15 9 . 9 15 10 5 Robot Miss Streak 6 | 1 6 4 4 2 . 1 5 2 4 Penetration Max . | . . . . . . . . . . Secondary Targets 11 | . 1 . 3 . . . 7 . . Max Gunslinging Chain 1 | . 1 . 1 . . . 1 . . Shots Hit Robots 528 | 7 39 22 147 15 3 13 244 14 24 Core Hits 245 | 4 19 16 62 7 . 3 107 4 23 Critical Kills . | . . . . . . . . . . Critical Parts Destroyed . | . . . . . . . . . . Critical Strikes 22 | . 1 2 9 2 . . 6 1 1 Burn 14 | . . . 8 2 . . 4 . . Blast 7 | . . 2 1 . . . 2 1 1 Corrupt 1 | . 1 . . . . . . . . Melee Attacks 3 | . . . . . 3 . . . . Impact . | . . . . . . . . . . Slashing . | . . . . . . . . . . Piercing . | . . . . . . . . . . Sneak Attacks 3 | . . . . . 3 . . . . Combat Hostiles . | . . . . . . . . . . Follow-up Attacks . | . . . . . . . . . . Damage Inflicted 11233 | 98 578 353 2450 265 . 172 5389 382 1546 Guns 6581 | 98 578 144 1719 265 . 172 3477 . 128 Cannons 3076 | . . 209 616 . . . 1458 382 411 Explosions 1568 | . . . 115 . . . 446 . 1007 Melee . | . . . . . . . . . . Ramming 8 | . . . . . . . 8 . . Kinetic 5527 | . 191 209 693 55 . 172 3606 224 377 Thermal 3131 | 45 45 . 1182 210 . . 1329 158 162 Explosive 1453 | . . . . . . . 446 . 1007 Electromagnetic 1114 | 53 342 144 575 . . . . . . Impact . | . . . . . . . . . . Slashing . | . . . . . . . . . . Piercing . | . . . . . . . . . . Highest Corruption . | . . . . . . . . . . Average Corruption . | . . . . . . . . . . Corruption Purged . | . . . . . . . . . . Corruption Blocked . | . . . . . . . . . . Overload Shots . | . . . . . . . . . . Overflow Damage 124 | . . . 2 . . . 28 . 94 Projectiles 46 | . . . 2 . . . 28 . 16 Explosions 78 | . . . . . . . . . 78 Melee . | . . . . . . . . . . Knockbacks 22 | . . 1 2 . . . 11 3 5 Impact . | . . . . . . . . . . Kinetic 21 | . . 1 2 . . . 11 2 5 Secondary 1 | . . . . . . . . 1 . Self-Inflicted Damage 88 | . . . 29 . . . 4 . 55 Shots 3 | . . . 1 . . . . . 2 Rammed 1 | . . . . . . . 1 . . Targets Rammed 1 | . . . . . . . 1 . . Kicked . | . . . . . . . . . . Crushed . | . . . . . . . . . . Highest Temperature 411 | 90 90 72 156 233 . . 411 252 54 Average Temperature 62 | 47 30 27 37 121 . . 90 96 16 Received Heat Transfer 1584 | . 78 48 438 42 . . 810 36 132 Effects 5 | . . . . . . . 5 . . Shutdowns 1 | . . . . . . . 1 . . Energy Bleed 1 | . . . . . . . 1 . . Interference 3 | . . . . . . . 3 . . Siege Activations . | . . . . . . . . . . Robots Corrupted . | . . . . . . . . . . Combat Hostiles . | . . . . . . . . . . Parts Fried 1 | . . . 1 . . . . . . Impact Corruptions . | . . . . . . . . . . Robots Melted 2 | . . . 2 . . . . . . Combat Hostiles 2 | . . . 2 . . . . . . Parts Melted 17 | . . . 10 1 . . 6 . . Heat Transferred 7491 | 100 100 . 3319 666 . . 2775 222 309 Parts Sabotaged . | . . . . . . . . . . Parts Stolen . | . . . . . . . . . . Parts Stripped . | . . . . . . . . . . Power Chain Reactions 3 | . . . 3 . . . . . . Missiles Intercepted . | . . . . . . . . . . Alert | -11 -10 -10 -9 -9 -9 -8 -8 -8 -8 ------- Run | Jun Mat Min Mat Min Exi Min Mat Sto Gar Peak Influence 817 | 15 163 75 491 225 . 30 662 586 817 Initial 336 | . 9 . 21 150 . . 11 264 336 Average 302 | 3 55 21 321 176 . 12 404 379 673 Maximum Alert Level 3 | . . . 2 1 . . 2 2 3 Low Security (%) 34 | 100 100 100 11 35 . 100 18 . . Level 1 33 | . . . 73 64 . . 23 70 6 Level 2 26 | . . . 15 . . . 58 29 30 Level 3 5 | . . . . . . . . . 63 Level 4 . | . . . . . . . . . . Level 5 . | . . . . . . . . . . High Security . | . . . . . . . . . . Max Security . | . . . . . . . . . . Squads Dispatched 24 | . 2 . 6 . . . 11 5 . Investigation 14 | . . . 6 . . . 8 . . Extermination . | . . . . . . . . . . Reinforcement 7 | . 2 . . . . . 3 2 . Assault 2 | . . . . . . . . 2 . Garrison 1 | . . . . . . . . 1 . Intercept . | . . . . . . . . . . Searches Triggered . | . . . . . . . . . . Construction Impeded 2 | . . . . . . . 1 1 . Haulers Reinforced . | . . . . . . . . . . Active Scanning Responses . | . . . . . . . . . . Cargo Convoy Interrupts . | . . . . . . . . . . Stealth | -11 -10 -10 -9 -9 -9 -8 -8 -8 -8 --------- Run | Jun Mat Min Mat Min Exi Min Mat Sto Gar Distress Signals 5 | . . . 1 . . . 2 2 . Communications Jammed . | . . . . . . . . . . Distress Signals . | . . . . . . . . . . Times Spotted 160 | . 12 8 47 3 . 1 56 15 18 Peak Tracking Total 9 | . 3 2 6 3 . 1 7 9 8 Tactical Retreats 6 | . . . 3 . . . 2 . 1 Traps | -11 -10 -10 -9 -9 -9 -8 -8 -8 -8 ------- Run | Jun Mat Min Mat Min Exi Min Mat Sto Gar Traps Triggered 19 | . 2 . 6 . . . 3 2 6 Indirectly . | . . . . . . . . . . Trap Hack Attempts . | . . . . . . . . . . Triggered . | . . . . . . . . . . Disarmed 2 | . 2 . . . . . . . . Reprogrammed . | . . . . . . . . . . Reused . | . . . . . . . . . . Traps Extracted . | . . . . . . . . . . Installed . | . . . . . . . . . . Triggered . | . . . . . . . . . . Machines | -11 -10 -10 -9 -9 -9 -8 -8 -8 -8 ---------- Run | Jun Mat Min Mat Min Exi Min Mat Sto Gar Machines Disabled 10 | . . . 1 . . . 6 1 2 Max in Single Turn 2 | . . . 1 . . . 2 1 1 Phase Generator 1 | . . . . . . . . . 1 Machines Repaired . | . . . . . . . . . . Machines Sabotaged . | . . . . . . . . . . Overloaded Fab Kills . | . . . . . . . . . . Hacking | -11 -10 -10 -9 -9 -9 -8 -8 -8 -8 --------- Run | Jun Mat Min Mat Min Exi Min Mat Sto Gar Machines Accessed 45 | . 7 . 16 . 5 . 14 3 . Terminals 28 | . 6 . 11 . . . 9 2 . Fabricators . | . . . . . . . . . . Repair Stations 4 | . . . 2 . . . 2 . . Recycling Units 3 | . 1 . 1 . . . 1 . . Scanalyzers 4 | . . . 2 . . . 2 . . Garrison Access 1 | . . . . . . . . 1 . Total Hacks 196 | . 20 . 53 . 50 . 66 7 . Successful 148 | . 10 . 36 . 50 . 49 3 . Failed 47 | . 9 . 17 . . . 17 4 . Catastrophic 3 | . . . 1 . . . 2 . . Database Lockouts 1 | . 1 . . . . . . . . Manual 78 | . 19 . 28 . 1 . 29 1 . Terminals 94 | . 19 . 32 . . . 37 6 . Fabricators . | . . . . . . . . . . Repair Stations 22 | . . . 11 . . . 11 . . Recycling Units 8 | . 1 . 3 . . . 4 . . Scanalyzers 21 | . . . 7 . . . 14 . . Garrison Access 1 | . . . . . . . . 1 . Terminal Hacks 84 | . 5 . 13 . 50 . 15 1 . Record 49 | . . . . . 49 . . . . Robot Schematic 2 | . . . 2 . . . . . . Robot Analysis 14 | . 2 . 4 . . . 8 . . Prototype ID Bank 2 | . . . . . . . 2 . . Open Door 1 | . . . . . . . . 1 . Terminal Index 2 | . . . 1 . . . 1 . . Scanalyzer Index 1 | . . . 1 . . . . . . Alert Level 2 | . . . 2 . . . . . . Unreport Threat 5 | . 1 . 1 . . . 3 . . Locate Traps 2 | . . . 1 . . . 1 . . Disarm Traps 1 | . 1 . . . . . . . . Security Status 1 | . . . 1 . . . . . . Hauler Manifests 1 | . 1 . . . . . . . . EX-Prototype ID Bank 1 | . . . . . 1 . . . . Fabricator Hacks . | . . . . . . . . . . Repair Station Hacks 16 | . . . 8 . . . 8 . . Scan Component 8 | . . . 4 . . . 4 . . Repair 8 | . . . 4 . . . 4 . . Recycling Unit Hacks 3 | . . . . . . . 3 . . Process 1 | . . . . . . . 1 . . Retrieve Matter 1 | . . . . . . . 1 . . Retrieve Components 1 | . . . . . . . 1 . . Scanalyzer 17 | . . . 5 . . . 12 . . Insert Component 8 | . . . 2 . . . 6 . . Analyze 9 | . . . 3 . . . 6 . . Garrison Access Hacks 1 | . . . . . . . . 1 . Unlock Access 1 | . . . . . . . . 1 . Unauthorized Hacks 27 | . 5 . 10 . . . 11 1 . Terminals 18 | . 4 . 6 . . . 7 1 . Assimilate 1 | . 1 . . . . . . . . Botnet 15 | . 2 . 6 . . . 6 1 . Operators 2 | . 1 . . . . . 1 . . Fabricators . | . . . . . . . . . . Repair Stations 2 | . . . 1 . . . 1 . . Mechanics 2 | . . . 1 . . . 1 . . Recycling Units 3 | . 1 . 1 . . . 1 . . Recyclers 3 | . 1 . 1 . . . 1 . . Scanalyzers 4 | . . . 2 . . . 2 . . Extract 4 | . . . 2 . . . 2 . . Garrison Access . | . . . . . . . . . . Data Cores Recovered 2 | . . . 1 . . . 1 . . Used . | . . . . . . . . . . Hacking Detections 36 | . 6 . 15 . . . 14 1 . Full Trace Events 8 | . . . 3 . . . 4 1 . Feedback Events . | . . . . . . . . . . Feedback Blocked . | . . . . . . . . . . Robot Schematics Acquired 2 | . . . 2 . . . . . . Robots Built . | . . . . . . . . . . Authchips . | . . . . . . . . . . Time . | . . . . . . . . . . Total Robot Build Rating . | . . . . . . . . . . Part Schematics Acquired 40 | . . . 23 . . . 17 . . Parts Built . | . . . . . . . . . . Authchips . | . . . . . . . . . . Time . | . . . . . . . . . . Total Part Build Rating . | . . . . . . . . . . Parts Repaired 8 | . . . 4 . . . 4 . . Time 347 | . . . 152 . . . 195 . . Parts Recycled . | . . . . . . . . . . Recycled Matter 294 | . . . . . . . 294 . . Retrieved Matter 294 | . . . . . . . 294 . . Retrieved Components 10 | . . . . . . . 10 . . Parts Scanalyzed 7 | . . . 2 . . . 5 . . Part Schematics Acquired 7 | . . . 2 . . . 5 . . Parts Damaged 1 | . . . 1 . . . . . . Bothacking | -11 -10 -10 -9 -9 -9 -8 -8 -8 -8 ------------ Run | Jun Mat Min Mat Min Exi Min Mat Sto Gar Used RIF Installer . | . . . . . . . . . . Robots Hacked 3 | . . . . . 3 . . . . Non-combat 2 | . . . . . 2 . . . . Combat 1 | . . . . . 1 . . . . Robot Hacks Applied 3 | . . . . . 3 . . . . parse_system 3 | . . . . . 3 . . . . Relay Couplers Released . | . . . . . . . . . . Fabnet Peak Effective % . | . . . . . . . . . . Robots Rewired . | . . . . . . . . . . Allies Hacked . | . . . . . . . . . . Hacks Repelled . | . . . . . . . . . . Allies | -11 -10 -10 -9 -9 -9 -8 -8 -8 -8 -------- Run | Jun Mat Min Mat Min Exi Min Mat Sto Gar Total Allies 12 | . . . . . . . . 12 . Largest Group 11 | . . . . . . . . 11 3 Highest-Rated Group 219 | . . . . . . . . 219 63 Highest-Rated Ally 31 | . . . . . . . . 31 31 Total Orders 4 | . . . . . . . . . 4 STAY 2 | . . . . . . . . . 2 FOLLOW 2 | . . . . . . . . . 2 Ally Attacks 89 | . . . . . . . . 73 16 Total Damage 1218 | . . . . . . . . 1032 186 Kills 11 | . . . . . . . . 10 1 Allies Corrupted . | . . . . . . . . . . Allies Melted . | . . . . . . . . . . Intel | -11 -10 -10 -9 -9 -9 -8 -8 -8 -8 ------- Run | Jun Mat Min Mat Min Exi Min Mat Sto Gar Robot Analysis Total 12 | . 2 . 4 . . . 6 . . Derelict Logs Recovered 1 | . . 1 . . . . . . . Drone Launches . | . . . . . . . . . . Drone Recoveries . | . . . . . . . . . . Exploration | -11 -10 -10 -9 -9 -9 -8 -8 -8 -8 ------------- Run | Jun Mat Min Mat Min Exi Min Mat Sto Gar Turns Passed 9079 | 72 818 912 2446 474 377 254 2808 209 709 Spaces Moved 5423 | 32 507 538 1502 373 327 179 1392 118 455 Core 16 | 16 . . . . . . . . . Treads . | . . . . . . . . . . Legs 29 | 16 13 . . . . . . . . Wheels . | . . . . . . . . . . Hover 5378 | . 494 538 1502 373 327 179 1392 118 455 Flight . | . . . . . . . . . . Fastest Speed 50 | 50 116 116 52 112 112 112 102 112 112 Average Speed 113 | 122 116 118 116 112 112 120 108 112 115 Slowest Speed 300 | 250 180 240 300 112 112 176 290 112 300 Overloaded Moves . | . . . . . . . . . . Propulsion Burnouts . | . . . . . . . . . . Robots Hopped . | . . . . . . . . . . Cave-ins Triggered . | . . . . . . . . . . Exploration Rate (%) 60 | 4 77 94 96 63 65 42 97 21 46 Regions Visited 9 Branch Regions 5 Pre-discovered Areas 2 | . . 1 . . 1 . . . . Known Exits Taken 3 | . . . . . . 1 1 1 . Unknown Exits Taken 6 | 1 1 1 1 1 1 . . . . Scrap Searched 6 | . . 3 . 2 . 1 . . . Spaces Dug 99 | . . . . . . . 68 . 31 Terrain Destroyed 428 | . . . 15 . . . 189 4 220 Melee . | . . . . . . . . . . Projectile 29 | . . . 1 . . . 20 4 4 AOE 399 | . . . 14 . . . 169 . 216 Terrain Rammed . | . . . . . . . . . . Walls Destroyed . | . . . . . . . . . . Machines Disabled . | . . . . . . . . . . Actions | -11 -10 -10 -9 -9 -9 -8 -8 -8 -8 --------- Run | Jun Mat Min Mat Min Exi Min Mat Sto Gar Total 7691 | 54 683 779 1998 408 335 203 2452 179 600 Wait 1488 | 1 108 206 284 16 . 15 791 26 41 Move 5414 | 31 506 537 1501 372 326 178 1391 117 455 Hop . | . . . . . . . . . . Pick Up 151 | 9 21 7 51 1 2 . 52 1 7 Fast Attach . | . . . . . . . . . . Attach 88 | 7 7 3 32 3 . 2 25 1 8 Detach . | . . . . . . . . . . Swap 41 | 1 2 1 6 2 3 . 22 . 4 Drop 66 | . 10 5 13 2 1 . 30 . 5 Fire 359 | 5 29 20 111 12 . 8 140 7 27 Melee 3 | . . . . . 3 . . . . Ram 1 | . . . . . . . 1 . . Kick . | . . . . . . . . . . Crush . | . . . . . . . . . . Escape Stasis 78 | . . . . . . . . 26 52 Rewire 2 | . . . . . . . . 1 1 Trap . | . . . . . . . . . . Miscellaneous . | . . . . . . . . . . Route ------- -11/Junkyard -10/Materials (discovered 3 exits: *Mat x2 / [*Min]) -10/Mines (discovered 2 exits: *Mat x2) -9/Materials (discovered 4 exits: *Mat x3 / [*Min]) -9/Mines -9/Exiles -8/Mines -8/Materials (discovered 4 exits: *Fac x3 / *Sto) -8/Storage -8/Garrison (discovered 1 exit: *Fac) History --------- Turn | Location | Event 8 | -11/Junkyard | Discovered new exit (range 16) 73 | -11/Junkyard | Entered Materials 295 | -10/Materials | Discovered new exit (range 14) 314 | -10/Materials | Central database locked down 330 | -10/Materials | Build established: Mutant 548 | -10/Materials | Discovered new exit (range 16) 851 | -10/Materials | Discovered new exit (range 13) 891 | -10/Materials | Entered Mines 939 | -10/Mines | Received a Rocket Launcher from a helpful Derelict 959 | -10/Mines | Learned 2 Materials zone layouts 1084 | -10/Mines | Learned location of Storage (-8) 1297 | -10/Mines | Excavation squad dispatched 1297 | -10/Mines | A large section of the Mines collapsed 1538 | -10/Mines | Discovered new exit (range 7) 1734 | -10/Mines | Discovered new exit (range 15) 1803 | -10/Mines | Entered Materials 1803 | -9/Materials | Evolved 2 slots: Propulsion x1, Utility x1 1804 | -9/Materials | Identified exit to Materials 1956 | -9/Materials | Lost 3 parts (1n1u1w) 2253 | -9/Materials | Lost 3 parts (2n1w) 2741 | -9/Materials | Repaired Airjet 2781 | -9/Materials | Repaired Airjet 2990 | -9/Materials | Discovered exit to Materials (range 11) 3077 | -9/Materials | Repaired Airjet 3117 | -9/Materials | Repaired Airjet 3866 | -9/Materials | Discovered exit to Materials (range 16) 3926 | -9/Materials | Build established: Scavenger-Mutant 4232 | -9/Materials | Discovered new exit (range 16) 4249 | -9/Materials | Entered Mines 4260 | -9/Mines | Met a Derelict bent on vengeance 4336 | -9/Mines | Core integrity fell below 50% 4510 | -9/Mines | Found a damaged Exp. Sensor Array with a note attached 4512 | -9/Mines | Found Prototype Device 4513 | -9/Mines | Identified Exp. Sensor Array 4719 | -9/Mines | Deemed a non-threat by the Exiles lab entrance 4719 | -9/Mines | Discovered new exit (range 5) 4723 | -9/Mines | Entered Exiles 4749 | -9/Exiles | Met 8R-AWN 4771 | -9/Exiles | Met EX-HEX 4869 | -9/Exiles | Met EX-BIN 4886 | -9/Exiles | Aligned with FarCom system 4887 | -9/Exiles | Given EX-Vault access code 4913 | -9/Exiles | Opened EX-Vault 4921 | -9/Exiles | Found PSU Rigger 4963 | -9/Exiles | Warned to stay clear of 0b10 Research branches 4997 | -9/Exiles | Met EX-DEC 5002 | -9/Exiles | Learned location of Zion (-6) 5087 | -9/Exiles | Discovered new exit (range 10) 5100 | -9/Exiles | Left Exiles lab with PSU Rigger 5100 | -9/Exiles | Entered Mines 5344 | -8/Mines | Discovered exit to Materials (range 7) 5354 | -8/Mines | Entered Materials 5354 | -8/Materials | Evolved 2 slots: Utility x1, Weapon x1 5670 | -8/Materials | Build established: Skirmisher 6111 | -8/Materials | Repaired Aerolev Unit 6624 | -8/Materials | Destroyed 7 combat bots 6626 | -8/Materials | Lost 3 parts (2n1w) 6670 | -8/Materials | Discovered new exit (range 15) 6712 | -8/Materials | Discovered new exit (range 13) 7249 | -8/Materials | Core integrity fell below 50% 7282 | -8/Materials | Discovered new exit (range 9) 7292 | -8/Materials | Lost 7 parts (1p2n1u3w) 7532 | -8/Materials | Discovered new exit (range 9) 7583 | -8/Materials | Repaired Imp. Heat Sink 7629 | -8/Materials | Repaired Gravmag System 7684 | -8/Materials | Repaired Corrupted Airjet 8024 | -8/Materials | Identified exit to Factory 8094 | -8/Materials | Identified exit to Storage 8162 | -8/Materials | Entered Storage 8195 | -8/Storage | Assisted by bots powering up and referring to "LRC-V3" 8271 | -8/Storage | Met a pair of Derelict thieves 8369 | -8/Storage | Garrison activated, responded to threat 8370 | -8/Storage | Identified exit to Garrison 8371 | -8/Storage | Entered Garrison 8371 | -8/Garrison | Accompanied by 3 allies 8417 | -8/Garrison | Phase Generator disabled 8460 | -8/Garrison | P-60 Hacker assimilated allied Trooper 3d 8564 | -8/Garrison | Spotted B-75 Beast 8576 | -8/Garrison | Core integrity fell below 20% 8655 | -8/Garrison | Destroyed 7 combat bots 8670 | -8/Garrison | Lost 4 parts (1p2n1w) 8716 | -8/Garrison | Triggered checkpoint 8810 | -8/Garrison | Discovered exit to Factory (range 7) 8949 | -8/Garrison | Build established: Scavenger-Mutant 9080 | -8/Garrison | Destroyed by Y-45 Defender with Beam Rifle Last Messages --------------- 08905_ Field strength at 72. 08906_ Field strength at 65. 08913_ Field strength at 58. 08914_ The unstable cave ceiling collapses. 08914_ Field strength at 51. 08915_ Field strength at 44. 08916_ Field strength at 37. 08917_ Field strength at 30. 08918_ Field strength at 23. 08919_ The unstable cave ceiling collapses. 08919_ Field strength at 16. 08920_ Field strength at 9. 08921_ Field strength at 2. 08922_ Stasis field depleted. 08926_ The unstable cave ceiling collapses. 09041_ Acquired 31 matter. 09045_ Acquired 29 matter. 09054_ Imp. Grenade Launcher destroyed. 09056_ Critical hit (Burn: +37). 09071_ G-47 Trooper destroyed. Map ----- +----------------------------------------------------+ | | | | | | | | | | | ??????????????????????????????????????????????? | | ??????????????????????????????????????????????? | | ??????????????????????????????????????????????? | | ??????????????????????????????????????????????? | | ??????????????????????????????????????????????? | | ??????????????????????????????????????????????? | | ?????????????????????????????????####?????????? | | ???????????????????###########??? #?????????? | | ??????????????????## # # ##?? #?????????? | | ?????????????????## ## # # #### #?????????? | | ?????????????????## ## ## # #?????????? | | ????????????????## ## #?????????? | | ????????????????### ## ##?????????? | | ???????????????## # ### #??????????? | | ???????????????#### #### #??????????? | | ??????????###### #???##?????? | | ????????### # # # ## #?### #????? | | ????????# # # ####+### ##### | | ????????# # # ## ##! ! !!! ! | | ????????# = ###! ! # #! ! | | ????????# ### #### @ #?## %## ! | | ????????### # ####*Y# ####??#= % | | ??????????# # #?# # ###?????# ! [ | | ??????????# #######=# = # #??????# % ] | | ??????????###???## [ #??????# #BB" ] % | | ????????????????# #????? #BB## ]]] | | ????????????????# # ##????### ###### # | | ????????????????### # #??????# #???# # #] | | ??????????????#### #######???# #???#####[# | | ????????# % #???# #???????#]# | | ?????????????# ### ##### #???# #???????# # | | ?????????????????#### #???# #???# #????#### # | | ????????????????????# ##### ##### ###### # # | | ????????????????????# =# | | ????????????????????# * = # | | ????????????????????# ###### ##### ######## | | ????????????????????# #???# #???# #????### | | ????????????????????# #???## #???# #????# = | | ????????????????????# #????# #???# #????###[ # | | ?????????????######## ###### ##### #??????#= # | | ??????????# #??????# # | | ?????????????##### ## ## ######### #??????# # | | ?????????????????#??# ## #???????# #?????## ^# | | ????????????????????# /# !???????# ####### | | ????????????????????# /# !#??????# | +----------------------------------------------------+ Best States ------------- Heat Dissipation 59 Energy Generation 14 Energy Capacity 280 Matter Stores 300 Matter Capacity 300 Sight Range 16 Terrain Scan Range 16 Terrain Scan Density 10 Armor Coverage 225 Evasion (%) 55 Targeting Accuracy 5 Offensive Hacking 20 Item Schematics ----------------- Hacking Suite | -9/Materials | Scanalyzed Plasma Cutter | -9/Materials | Extracted Welding Torch | -9/Materials | Extracted Field Recycling Unit | -9/Materials | Extracted Lrg. Storage Unit | -9/Materials | Extracted Med. Storage Unit | -9/Materials | Extracted Imp. Hover Unit | -9/Materials | Extracted Arm. Wheel | -9/Materials | Extracted Cooling System | -9/Materials | Extracted Maul | -9/Materials | Extracted Lrg. Matter Pod | -9/Materials | Extracted Flight Unit | -9/Materials | Extracted Med. Matter Pod | -9/Materials | Extracted Imp. Grenade Launcher | -9/Materials | Scanalyzed Mni. Grenade Launcher | -9/Materials | Extracted Hvy. EM Pulse Gun | -9/Materials | Extracted ECM Suite | -9/Materials | Extracted Imp. Targeting Computer | -9/Materials | Extracted Imp. Flight Unit | -9/Materials | Extracted Med. Laser | -9/Materials | Extracted Spread Laser | -9/Materials | Extracted Hcp. Storage Unit | -9/Materials | Extracted Hcp. Matter Pod | -9/Materials | Extracted Gravmag System | -8/Materials | Scanalyzed Lgt. Nuclear Core | -8/Materials | Scanalyzed Datajack | -8/Materials | Scanalyzed Particle Charger | -8/Materials | Extracted Adv. Assault Cannon | -8/Materials | Scanalyzed Imp. Heat Sink | -8/Materials | Scanalyzed Imp. Terrain Scanner | -8/Materials | Extracted Shotgun | -8/Materials | Extracted Reaction Control System | -8/Materials | Extracted Imp. Utility Shielding | -8/Materials | Extracted Arm. Treads | -8/Materials | Extracted Hpw. Shotgun | -8/Materials | Extracted Prc. Beam Rifle | -8/Materials | Extracted System Shield | -8/Materials | Extracted Terrain Scan Processor | -8/Materials | Extracted Seismic Detector | -8/Materials | Extracted Imp. Aluminum Leg | -8/Materials | Extracted Robot Schematics ------------------ O-16 Technician | -9/Materials | Hacked M-13 Machinist | -9/Materials | Hacked Fabricated ------------ Nothing Alien Tech Used ----------------- None Achievements -------------- None Challenges ------------ None Game ------ Seed HellfireSubatomicRifle Manual? 0 Play Time 01:19:48 Cumulative 137.5 hours Start 2023.07.12 @ 22:27:31 End 2023.07.12 @ 23:55:26 Sessions 1 Manual Loads 0 Difficulty Rogue Special Mode None Game No. 127 Rogue 127 Adventurer 0 Explorer 0 Win Type - Total 1 Types 1/0/0/0/0/0/0/0/0 Lore% 47 Gallery% 63 Achievement% 51 Wizard Run 0 Options --------- ASCII 0 Keyboard 0 Movement Numpad Keybinds 0 Fullscreen 2 Font 18/Smallcaps Map View 76x50 Tactical HUD 1 Map Filters NONE Filters NONE Steam 1 RUN: 76498858-778b-421c-a792-17dcb20244ef